[Event "Titled Tuesday Blitz May 25 2021"]
[White "Gabdushev, Ruslan"]
[Black "Spyropoulos, Nikolaos"]
[WhiteFideId "4137833"]
[BlackFideId "4298977"]
[WhiteElo "2312"]
[BlackElo "2159"]
[Result "1-0"]
[Round "08"]
[TimeControl "180+1"]
[Date "2021.05.25"]
[WhiteClock "0:00:15"]
[BlackClock "0:00:33"]

1. b3 {[%clk 0:03:00]}  Nf6 {[%clk 0:02:58]} 2. Bb2 {[%clk 0:03:00]}  d5 {[%clk 0:02:59]} 3. e3 {[%clk 0:02:59]}  c6 {[%clk 0:02:59]} 4. f4 {[%clk 0:02:59]}  Bf5 {[%clk 0:02:59]} 5. Nf3 {[%clk 0:02:58]}  Nbd7 {[%clk 0:03:00]} 6. Bd3 {[%clk 0:02:58]}  e6 {[%clk 0:02:58]} 7. O-O {[%clk 0:02:57]}  Bd6 {[%clk 0:02:58]} 8. Bxf5 {[%clk 0:02:53]}  exf5 {[%clk 0:02:58]} 9. a4 {[%clk 0:02:50]}  O-O {[%clk 0:02:56]} 10. a5 {[%clk 0:02:49]}  a6 {[%clk 0:02:56]} 11. c4 {[%clk 0:02:47]}  Qe7 {[%clk 0:02:55]} 12. Nc3 {[%clk 0:02:44]}  Rac8 {[%clk 0:02:51]} 13. Qb1 {[%clk 0:02:31]}  g6 {[%clk 0:02:48]} 14. cxd5 {[%clk 0:02:26]}  cxd5 {[%clk 0:02:48]} 15. Rc1 {[%clk 0:02:14]}  Rc7 {[%clk 0:02:40]} 16. Ne2 {[%clk 0:02:04]}  Rfc8 {[%clk 0:02:32]} 17. Rxc7 {[%clk 0:01:54]}  Rxc7 {[%clk 0:02:31]} 18. Bd4 {[%clk 0:01:54]}  Bc5 {[%clk 0:02:19]} 19. Qb2 {[%clk 0:01:37]}  Bxd4 {[%clk 0:02:17]} 20. Qxd4 {[%clk 0:01:36]}  Qc5 {[%clk 0:02:11]} 21. b4 {[%clk 0:01:26]}  Qxd4 {[%clk 0:02:11]} 22. Nexd4 {[%clk 0:01:24]}  Rc4 {[%clk 0:02:08]} 23. b5 {[%clk 0:01:23]}  axb5 {[%clk 0:02:05]} 24. Nxb5 {[%clk 0:01:23]}  Rb4 {[%clk 0:02:04]} 25. Nbd4 {[%clk 0:01:16]}  Ne4 {[%clk 0:02:01]} 26. Rc1 {[%clk 0:00:58]}  Ndc5 {[%clk 0:01:54]} 27. Ne5 {[%clk 0:00:49]}  f6 {[%clk 0:01:54]} 28. Nef3 {[%clk 0:00:48]}  Ra4 {[%clk 0:01:52]} 29. Kf1 {[%clk 0:00:34]}  Rxa5 {[%clk 0:01:52]} 30. Ke2 {[%clk 0:00:34]}  Ra2 {[%clk 0:00:53]} 31. Kd1 {[%clk 0:00:24]}  Kg7 {[%clk 0:00:46]} 32. Rb1 {[%clk 0:00:19]}  Kh6 {[%clk 0:00:41]} 33. Rb6 {[%clk 0:00:17]}  Ra1+ {[%clk 0:00:36]} 34. Ke2 {[%clk 0:00:16]}  Rg1 {[%clk 0:00:33]} 35. Nxg1 {[%clk 0:00:15]} 1-0


[Site "https://www.chess.com"]

[Event "Titled Tuesday Blitz May 25 2021"]
[White "Goryachkina, Aleksandra"]
[Black "Spata, German"]
[WhiteFideId "4147103"]
[BlackFideId "113026"]
[WhiteElo "2640"]
[BlackElo "2522"]
[Result "1/2-1/2"]
[Round "08"]
[TimeControl "180+1"]
[Date "2021.05.25"]
[WhiteClock "0:01:27"]
[BlackClock "0:01:25"]

1. e4 {[%clk 0:02:59]}  e6 {[%clk 0:02:47]} 2. d4 {[%clk 0:02:57]}  d5 {[%clk 0:02:47]} 3. e5 {[%clk 0:02:58]}  c5 {[%clk 0:02:47]} 4. c3 {[%clk 0:02:58]}  Nc6 {[%clk 0:02:46]} 5. Nf3 {[%clk 0:02:57]}  Qb6 {[%clk 0:02:46]} 6. a3 {[%clk 0:02:53]}  c4 {[%clk 0:02:46]} 7. Be2 {[%clk 0:02:52]}  Na5 {[%clk 0:02:43]} 8. Nbd2 {[%clk 0:02:52]}  Bd7 {[%clk 0:02:40]} 9. O-O {[%clk 0:02:51]}  Ne7 {[%clk 0:02:38]} 10. Rb1 {[%clk 0:02:44]}  Qc7 {[%clk 0:02:37]} 11. Re1 {[%clk 0:02:38]}  h6 {[%clk 0:02:32]} 12. Nf1 {[%clk 0:02:29]}  Nc8 {[%clk 0:02:32]} 13. Ng3 {[%clk 0:02:28]}  Nb6 {[%clk 0:02:28]} 14. Bf1 {[%clk 0:02:27]}  O-O-O {[%clk 0:02:13]} 15. Nh5 {[%clk 0:02:24]}  Ba4 {[%clk 0:02:06]} 16. Qe2 {[%clk 0:02:24]}  Kb8 {[%clk 0:02:02]} 17. h3 {[%clk 0:02:23]}  Nd7 {[%clk 0:01:50]} 18. g3 {[%clk 0:02:10]}  Bb3 {[%clk 0:01:43]} 19. h4 {[%clk 0:02:08]}  Ba2 {[%clk 0:01:35]} 20. Ra1 {[%clk 0:02:08]}  Bb3 {[%clk 0:01:35]} 21. Bf4 {[%clk 0:02:05]}  Ba4 {[%clk 0:01:34]} 22. Bg2 {[%clk 0:01:58]}  Ka8 {[%clk 0:01:33]} 23. Rab1 {[%clk 0:01:41]}  Qb6 {[%clk 0:01:33]} 24. Qd2 {[%clk 0:01:38]}  Qb3 {[%clk 0:01:28]} 25. Rbc1 {[%clk 0:01:27]}  Qb6 {[%clk 0:01:26]} 26. Rb1 {[%clk 0:01:27]}  Qb3 {[%clk 0:01:25]} 27. Rbc1 {[%clk 0:01:27]}  Qb6 {[%clk 0:01:25]} 28. Rb1 {[%clk 0:01:27]} 1/2-1/2


[Site "https://www.chess.com"]

[Event "Titled Tuesday Blitz May 25 2021"]
[White "Grunberg, Mihai-Lucian"]
[Black "Weetik, Vjacheslav"]
[WhiteFideId "1204149"]
[BlackFideId "4153472"]
[WhiteElo "2524"]
[BlackElo "2740"]
[Result "0-1"]
[Round "08"]
[TimeControl "180+1"]
[Date "2021.05.25"]
[WhiteClock "0:00:12"]
[BlackClock "0:00:47"]

1. Nf3 {[%clk 0:03:00]}  Nf6 {[%clk 0:02:56]} 2. c4 {[%clk 0:02:53]}  g6 {[%clk 0:02:56]} 3. g3 {[%clk 0:02:53]}  Bg7 {[%clk 0:02:57]} 4. Bg2 {[%clk 0:02:54]}  O-O {[%clk 0:02:58]} 5. O-O {[%clk 0:02:55]}  d6 {[%clk 0:02:58]} 6. d4 {[%clk 0:02:56]}  Nc6 {[%clk 0:02:59]} 7. Nc3 {[%clk 0:02:55]}  a6 {[%clk 0:02:59]} 8. Re1 {[%clk 0:02:54]}  Rb8 {[%clk 0:02:57]} 9. Rb1 {[%clk 0:02:51]}  b5 {[%clk 0:02:53]} 10. cxb5 {[%clk 0:02:50]}  axb5 {[%clk 0:02:54]} 11. b4 {[%clk 0:02:50]}  e6 {[%clk 0:02:50]} 12. e4 {[%clk 0:02:50]}  Ne7 {[%clk 0:02:48]} 13. Qd3 {[%clk 0:02:48]}  Nd7 {[%clk 0:02:47]} 14. Bb2 {[%clk 0:02:33]}  c6 {[%clk 0:02:40]} 15. d5 {[%clk 0:02:24]}  cxd5 {[%clk 0:02:35]} 16. exd5 {[%clk 0:02:23]}  e5 {[%clk 0:02:36]} 17. Nxb5 {[%clk 0:02:14]}  Ba6 {[%clk 0:02:36]} 18. a4 {[%clk 0:02:15]}  Nb6 {[%clk 0:02:33]} 19. Qb3 {[%clk 0:01:58]}  Nxa4 {[%clk 0:02:28]} 20. Qxa4 {[%clk 0:01:57]}  Bxb5 {[%clk 0:02:28]} 21. Qb3 {[%clk 0:01:54]}  h6 {[%clk 0:02:23]} 22. Nd2 {[%clk 0:01:50]}  Qd7 {[%clk 0:02:14]} 23. Rec1 {[%clk 0:01:48]}  Nf5 {[%clk 0:02:09]} 24. Ne4 {[%clk 0:01:43]}  Nd4 {[%clk 0:02:03]} 25. Bxd4 {[%clk 0:01:40]}  exd4 {[%clk 0:02:04]} 26. h4 {[%clk 0:01:29]}  Rfe8 {[%clk 0:02:00]} 27. Re1 {[%clk 0:01:19]}  Rbc8 {[%clk 0:01:48]} 28. Rbc1 {[%clk 0:01:15]}  Rxc1 {[%clk 0:01:43]} 29. Rxc1 {[%clk 0:01:14]}  Be2 {[%clk 0:01:37]} 30. Rc6 {[%clk 0:01:05]}  d3 {[%clk 0:01:35]} 31. Rxd6 {[%clk 0:01:03]}  Qa7 {[%clk 0:01:25]} 32. Rc6 {[%clk 0:00:49]}  Qa1+ {[%clk 0:01:23]} 33. Kh2 {[%clk 0:00:46]}  Rxe4 {[%clk 0:01:06]} 34. Bxe4 {[%clk 0:00:46]}  Qd4 {[%clk 0:00:51]} 35. Rc8+ {[%clk 0:00:34]}  Kh7 {[%clk 0:00:51]} 36. Rc4 {[%clk 0:00:12]}  Qxf2+ {[%clk 0:00:50]} 37. Kh3 {[%clk 0:00:12]}  Bf1+ {[%clk 0:00:47]} 0-1


[Site "https://www.chess.com"]

[Event "Titled Tuesday Blitz May 25 2021"]
[White "Isajevsky, Anton"]
[Black "Von Buelow, Georg"]
[WhiteFideId "4142500"]
[BlackFideId "4620658"]
[WhiteElo "2580"]
[BlackElo "2238"]
[Result "1-0"]
[Round "08"]
[TimeControl "180+1"]
[Date "2021.05.25"]
[WhiteClock "0:01:29"]
[BlackClock "0:01:33"]

1. c4 {[%clk 0:03:00]}  g6 {[%clk 0:02:57]} 2. Nc3 {[%clk 0:02:59]}  Bg7 {[%clk 0:02:57]} 3. g3 {[%clk 0:03:00]}  c5 {[%clk 0:02:56]} 4. Bg2 {[%clk 0:02:59]}  Nc6 {[%clk 0:02:56]} 5. Rb1 {[%clk 0:02:58]}  d6 {[%clk 0:02:51]} 6. a3 {[%clk 0:02:57]}  Qd7 {[%clk 0:02:43]} 7. b4 {[%clk 0:02:52]}  Bxc3 {[%clk 0:02:39]} 8. dxc3 {[%clk 0:02:51]}  Nf6 {[%clk 0:02:36]} 9. Nh3 {[%clk 0:02:11]}  O-O {[%clk 0:02:20]} 10. Nf4 {[%clk 0:02:09]}  Rb8 {[%clk 0:02:09]} 11. Nd5 {[%clk 0:02:05]}  b6 {[%clk 0:01:48]} 12. Bf4 {[%clk 0:01:36]}  Nxd5 {[%clk 0:01:35]} 13. cxd5 {[%clk 0:01:35]}  Nd8 {[%clk 0:01:33]} 14. bxc5 {[%clk 0:01:29]} 1-0


[Site "https://www.chess.com"]

[Event "Titled Tuesday Blitz May 25 2021"]
[White "Janaszak, Dawid"]
[Black "Mikhalevski, Victor"]
[WhiteFideId "1119206"]
[BlackFideId "2801914"]
[WhiteElo "2519"]
[BlackElo "2716"]
[Result "0-1"]
[Round "08"]
[TimeControl "180+1"]
[Date "2021.05.25"]
[WhiteClock "0:00:03"]
[BlackClock "0:00:17"]

1. e4 {[%clk 0:03:00]}  c5 {[%clk 0:02:58]} 2. Nc3 {[%clk 0:03:00]}  g6 {[%clk 0:02:57]} 3. d4 {[%clk 0:02:55]}  cxd4 {[%clk 0:02:56]} 4. Qxd4 {[%clk 0:02:56]}  Nf6 {[%clk 0:02:57]} 5. e5 {[%clk 0:02:47]}  Nc6 {[%clk 0:02:56]} 6. Qf4 {[%clk 0:02:34]}  Nh5 {[%clk 0:02:53]} 7. Qe3 {[%clk 0:02:34]}  d5 {[%clk 0:02:43]} 8. exd6 {[%clk 0:02:23]}  Qxd6 {[%clk 0:02:42]} 9. Bd2 {[%clk 0:02:03]}  Bg7 {[%clk 0:02:29]} 10. O-O-O {[%clk 0:02:03]}  O-O {[%clk 0:02:26]} 11. Nf3 {[%clk 0:01:36]}  Bg4 {[%clk 0:02:23]} 12. Bc4 {[%clk 0:01:23]}  Rac8 {[%clk 0:02:18]} 13. Kb1 {[%clk 0:01:18]}  Bxf3 {[%clk 0:02:17]} 14. gxf3 {[%clk 0:01:05]}  Bd4 {[%clk 0:02:15]} 15. Qh6 {[%clk 0:00:58]}  Ne5 {[%clk 0:02:06]} 16. Bb3 {[%clk 0:00:53]}  Nxf3 {[%clk 0:02:04]} 17. Ne4 {[%clk 0:00:35]}  Qc6 {[%clk 0:01:56]} 18. Ng3 {[%clk 0:00:16]}  Bg7 {[%clk 0:01:41]} 19. Qe3 {[%clk 0:00:15]}  Nxd2+ {[%clk 0:01:39]} 20. Qxd2 {[%clk 0:00:13]}  Nf6 {[%clk 0:01:35]} 21. h4 {[%clk 0:00:12]}  h5 {[%clk 0:01:32]} 22. Rhg1 {[%clk 0:00:12]}  Kh7 {[%clk 0:01:30]} 23. c3 {[%clk 0:00:12]}  Rfd8 {[%clk 0:01:23]} 24. Qe2 {[%clk 0:00:11]}  e6 {[%clk 0:01:16]} 25. Bc2 {[%clk 0:00:11]}  Kh8 {[%clk 0:01:04]} 26. a3 {[%clk 0:00:10]}  Rxd1+ {[%clk 0:00:54]} 27. Rxd1 {[%clk 0:00:10]}  Nd5 {[%clk 0:00:54]} 28. Ne4 {[%clk 0:00:09]}  Qb6 {[%clk 0:00:50]} 29. Ka2 {[%clk 0:00:08]}  Rd8 {[%clk 0:00:44]} 30. Bb3 {[%clk 0:00:06]}  Nf4 {[%clk 0:00:42]} 31. Qf1 {[%clk 0:00:05]}  Qc7 {[%clk 0:00:36]} 32. Rxd8+ {[%clk 0:00:04]}  Qxd8 {[%clk 0:00:36]} 33. Ng5 {[%clk 0:00:05]}  Kg8 {[%clk 0:00:35]} 34. Qc4 {[%clk 0:00:05]}  Nd5 {[%clk 0:00:34]} 35. Qe4 {[%clk 0:00:04]}  Qd6 {[%clk 0:00:32]} 36. Nf3 {[%clk 0:00:01]}  a6 {[%clk 0:00:28]} 37. Qc4 {[%clk 0:00:02]}  Qc7 {[%clk 0:00:28]} 38. Qxc7 {[%clk 0:00:02]}  Nxc7 {[%clk 0:00:27]} 39. a4 {[%clk 0:00:02]}  Kf8 {[%clk 0:00:26]} 40. Bc2 {[%clk 0:00:02]}  Ke7 {[%clk 0:00:26]} 41. b4 {[%clk 0:00:03]}  Bxc3 {[%clk 0:00:22]} 42. Kb3 {[%clk 0:00:03]}  Nd5 {[%clk 0:00:21]} 43. Be4 {[%clk 0:00:02]}  Bf6 {[%clk 0:00:19]} 44. Kc4 {[%clk 0:00:03]}  Kd6 {[%clk 0:00:19]} 45. b5 {[%clk 0:00:03]}  a5 {[%clk 0:00:18]} 46. b6 {[%clk 0:00:03]}  Nxb6+ {[%clk 0:00:17]} 47. Kb5 {[%clk 0:00:03]}  Nd5 {[%clk 0:00:17]} 48. Kxa5 {[%clk 0:00:04]}  Kc5 {[%clk 0:00:18]} 49. Bxd5 {[%clk 0:00:03]}  Bc3# {[%clk 0:00:17]} 0-1


[Site "https://www.chess.com"]

[Event "Titled Tuesday Blitz May 25 2021"]
[White "Jarovinsky, Alexey"]
[Black "Hess, Robert"]
[WhiteFideId "14115131"]
[BlackFideId "2022036"]
[WhiteElo "2612"]
[BlackElo "2747"]
[Result "1/2-1/2"]
[Round "08"]
[TimeControl "180+1"]
[Date "2021.05.25"]
[WhiteClock "0:00:12"]
[BlackClock "0:00:02"]

1. Nc3 {[%clk 0:03:00]}  g6 {[%clk 0:03:00]} 2. h4 {[%clk 0:02:59]}  Bg7 {[%clk 0:03:01]} 3. h5 {[%clk 0:02:59]}  d5 {[%clk 0:03:02]} 4. e4 {[%clk 0:02:55]}  d4 {[%clk 0:02:58]} 5. Nce2 {[%clk 0:02:54]}  c5 {[%clk 0:02:57]} 6. Nf4 {[%clk 0:02:46]}  Nc6 {[%clk 0:02:53]} 7. Bb5 {[%clk 0:02:44]}  Bd7 {[%clk 0:02:48]} 8. Nf3 {[%clk 0:02:41]}  a6 {[%clk 0:02:41]} 9. Bxc6 {[%clk 0:02:37]}  Bxc6 {[%clk 0:02:42]} 10. d3 {[%clk 0:02:35]}  e5 {[%clk 0:02:39]} 11. Ne2 {[%clk 0:02:15]}  c4 {[%clk 0:02:19]} 12. Ng3 {[%clk 0:02:06]}  Qa5+ {[%clk 0:02:05]} 13. Bd2 {[%clk 0:02:05]}  c3 {[%clk 0:01:45]} 14. bxc3 {[%clk 0:02:03]}  dxc3 {[%clk 0:01:45]} 15. Be3 {[%clk 0:02:02]}  Nf6 {[%clk 0:01:43]} 16. Rb1 {[%clk 0:01:45]}  Ng4 {[%clk 0:00:55]} 17. Bb6 {[%clk 0:01:43]}  Qxa2 {[%clk 0:00:55]} 18. O-O {[%clk 0:01:24]}  Qe6 {[%clk 0:00:43]} 19. d4 {[%clk 0:01:13]}  Bb5 {[%clk 0:00:34]} 20. Ng5 {[%clk 0:00:59]}  Qxb6 {[%clk 0:00:31]} 21. Qxg4 {[%clk 0:00:59]}  exd4 {[%clk 0:00:27]} 22. e5 {[%clk 0:00:51]}  O-O {[%clk 0:00:18]} 23. e6 {[%clk 0:00:25]}  f5 {[%clk 0:00:18]} 24. Qh4 {[%clk 0:00:20]}  h6 {[%clk 0:00:14]} 25. hxg6 {[%clk 0:00:21]}  Qd8 {[%clk 0:00:14]} 26. f4 {[%clk 0:00:19]}  Qf6 {[%clk 0:00:12]} 27. Qh5 {[%clk 0:00:19]}  Bxf1 {[%clk 0:00:11]} 28. Rxf1 {[%clk 0:00:17]}  d3 {[%clk 0:00:12]} 29. cxd3 {[%clk 0:00:17]}  c2 {[%clk 0:00:12]} 30. Nf7 {[%clk 0:00:16]}  Qxe6 {[%clk 0:00:08]} 31. Nxf5 {[%clk 0:00:16]}  Rxf7 {[%clk 0:00:08]} 32. gxf7+ {[%clk 0:00:16]}  Qxf7 {[%clk 0:00:09]} 33. Nxh6+ {[%clk 0:00:16]}  Bxh6 {[%clk 0:00:09]} 34. Qxh6 {[%clk 0:00:17]}  Re8 {[%clk 0:00:03]} 35. Qg5+ {[%clk 0:00:13]}  Qg7 {[%clk 0:00:03]} 36. Qd5+ {[%clk 0:00:13]}  Qf7 {[%clk 0:00:04]} 37. Qg5+ {[%clk 0:00:12]}  Qg7 {[%clk 0:00:04]} 38. Qd5+ {[%clk 0:00:12]}  Qf7 {[%clk 0:00:02]} 39. Qg5+ {[%clk 0:00:12]} 1/2-1/2


[Site "https://www.chess.com"]

[Event "Titled Tuesday Blitz May 25 2021"]
[White "Khusnutdinov, Rustam"]
[Black "Ozen, Bahadir"]
[WhiteFideId "13701703"]
[BlackFideId "6337058"]
[WhiteElo "2571"]
[BlackElo "2503"]
[Result "0-1"]
[Round "08"]
[TimeControl "180+1"]
[Date "2021.05.25"]
[WhiteClock "0:00:05"]
[BlackClock "0:00:05"]

1. d4 {[%clk 0:02:58]}  Nf6 {[%clk 0:02:59]} 2. c4 {[%clk 0:02:56]}  e6 {[%clk 0:02:59]} 3. Nc3 {[%clk 0:02:56]}  Bb4 {[%clk 0:03:00]} 4. f3 {[%clk 0:02:57]}  d5 {[%clk 0:02:55]} 5. a3 {[%clk 0:02:56]}  Bxc3+ {[%clk 0:02:55]} 6. bxc3 {[%clk 0:02:57]}  c5 {[%clk 0:02:55]} 7. cxd5 {[%clk 0:02:58]}  Nxd5 {[%clk 0:02:56]} 8. dxc5 {[%clk 0:02:57]}  Qa5 {[%clk 0:02:56]} 9. e4 {[%clk 0:02:30]}  Nf6 {[%clk 0:02:56]} 10. Be3 {[%clk 0:02:30]}  O-O {[%clk 0:02:54]} 11. Qb3 {[%clk 0:02:30]}  Nfd7 {[%clk 0:02:51]} 12. a4 {[%clk 0:02:29]}  Qc7 {[%clk 0:02:51]} 13. Qa3 {[%clk 0:02:29]}  b6 {[%clk 0:02:49]} 14. a5 {[%clk 0:02:29]}  bxc5 {[%clk 0:02:49]} 15. a6 {[%clk 0:02:28]}  c4 {[%clk 0:02:48]} 16. Qa5 {[%clk 0:02:28]}  Qxa5 {[%clk 0:02:04]} 17. Rxa5 {[%clk 0:02:29]}  Nc6 {[%clk 0:02:05]} 18. Ra2 {[%clk 0:02:28]}  Rb8 {[%clk 0:02:02]} 19. Bxc4 {[%clk 0:02:09]}  Rb1+ {[%clk 0:02:01]} 20. Kf2 {[%clk 0:02:03]}  Nde5 {[%clk 0:01:57]} 21. Be2 {[%clk 0:02:03]}  Rd8 {[%clk 0:01:42]} 22. g4 {[%clk 0:02:01]}  Nd3+ {[%clk 0:01:38]} 23. Kg2 {[%clk 0:01:51]}  e5 {[%clk 0:01:27]} 24. Nh3 {[%clk 0:01:42]}  Rxh1 {[%clk 0:01:22]} 25. Kxh1 {[%clk 0:01:43]}  Be6 {[%clk 0:01:12]} 26. Rd2 {[%clk 0:01:37]}  Bc4 {[%clk 0:01:11]} 27. Kg1 {[%clk 0:01:36]}  Bxa6 {[%clk 0:01:09]} 28. Nf2 {[%clk 0:01:23]}  Nxf2 {[%clk 0:00:38]} 29. Rxd8+ {[%clk 0:01:23]}  Nxd8 {[%clk 0:00:39]} 30. Bxa6 {[%clk 0:01:23]}  Nd1 {[%clk 0:00:38]} 31. Bd2 {[%clk 0:01:22]}  Ne6 {[%clk 0:00:32]} 32. Kf1 {[%clk 0:00:43]}  Nc5 {[%clk 0:00:32]} 33. Be2 {[%clk 0:00:42]}  Nb2 {[%clk 0:00:32]} 34. Be3 {[%clk 0:00:43]}  Nba4 {[%clk 0:00:32]} 35. Ke1 {[%clk 0:00:38]}  Kf8 {[%clk 0:00:31]} 36. Kd2 {[%clk 0:00:24]}  Ke7 {[%clk 0:00:31]} 37. Bc4 {[%clk 0:00:23]}  f6 {[%clk 0:00:28]} 38. g5 {[%clk 0:00:21]}  a5 {[%clk 0:00:21]} 39. h4 {[%clk 0:00:20]}  Ne6 {[%clk 0:00:21]} 40. Bxe6 {[%clk 0:00:17]}  Kxe6 {[%clk 0:00:22]} 41. Kc2 {[%clk 0:00:16]}  Kd6 {[%clk 0:00:20]} 42. Kb3 {[%clk 0:00:15]}  Nc5+ {[%clk 0:00:21]} 43. Kc4 {[%clk 0:00:16]}  Ne6 {[%clk 0:00:03]} 44. Kb5 {[%clk 0:00:16]}  fxg5 {[%clk 0:00:03]} 45. hxg5 {[%clk 0:00:17]}  Nd8 {[%clk 0:00:02]} 46. c4 {[%clk 0:00:15]}  Ne6 {[%clk 0:00:01]} 47. c5+ {[%clk 0:00:13]}  Kc7 {[%clk 0:00:02]} 48. Kxa5 {[%clk 0:00:10]}  Kc6 {[%clk 0:00:03]} 49. Kb4 {[%clk 0:00:10]}  Nc7 {[%clk 0:00:03]} 50. Kc4 {[%clk 0:00:11]}  Ne6 {[%clk 0:00:03]} 51. Bd2 {[%clk 0:00:09]}  Nd4 {[%clk 0:00:03]} 52. f4 {[%clk 0:00:09]}  Nf3 {[%clk 0:00:03]} 53. Be3 {[%clk 0:00:06]}  exf4 {[%clk 0:00:03]} 54. Bxf4 {[%clk 0:00:07]}  Nh4 {[%clk 0:00:03]} 55. e5 {[%clk 0:00:07]}  Ng6 {[%clk 0:00:03]} 56. Bg3 {[%clk 0:00:07]}  Nf8 {[%clk 0:00:03]} 57. Bf2 {[%clk 0:00:07]}  Ne6 {[%clk 0:00:04]} 58. Be3 {[%clk 0:00:08]}  Nf8 {[%clk 0:00:04]} 59. Kd4 {[%clk 0:00:08]}  Ne6+ {[%clk 0:00:04]} 60. Ke4 {[%clk 0:00:09]}  g6 {[%clk 0:00:05]} 61. Kf3 {[%clk 0:00:04]}  Kd5 {[%clk 0:00:06]} 62. Kg3 {[%clk 0:00:04]}  Kxe5 {[%clk 0:00:05]} 63. Kg4 {[%clk 0:00:05]}  Ke4 {[%clk 0:00:04]} 64. Bf2 {[%clk 0:00:04]}  Kd5 {[%clk 0:00:05]} 65. Kf3 {[%clk 0:00:04]}  Nxc5 {[%clk 0:00:05]} 66. Kf4 {[%clk 0:00:05]}  Nd3+ {[%clk 0:00:05]} 0-1


[Site "https://www.chess.com"]

[Event "Titled Tuesday Blitz May 25 2021"]
[White "Korkmaz, Necmettin"]
[Black "Herrera Reyes, Jose Antonio"]
[WhiteFideId "6303285"]
[BlackFideId "2274914"]
[WhiteElo "2462"]
[BlackElo "2586"]
[Result "0-1"]
[Round "08"]
[TimeControl "180+1"]
[Date "2021.05.25"]
[WhiteClock "0:02:10"]
[BlackClock "0:01:44"]

1. d4 {[%clk 0:03:00]}  Nf6 {[%clk 0:02:59]} 2. Nf3 {[%clk 0:03:01]}  c5 {[%clk 0:02:58]} 3. d5 {[%clk 0:03:00]}  g6 {[%clk 0:02:59]} 4. c4 {[%clk 0:03:00]}  b5 {[%clk 0:02:59]} 5. cxb5 {[%clk 0:02:57]}  a6 {[%clk 0:02:59]} 6. b6 {[%clk 0:02:58]}  Bg7 {[%clk 0:02:58]} 7. Nc3 {[%clk 0:02:57]}  O-O {[%clk 0:02:58]} 8. g3 {[%clk 0:02:51]}  d6 {[%clk 0:02:57]} 9. Bg2 {[%clk 0:02:51]}  Nbd7 {[%clk 0:02:57]} 10. O-O {[%clk 0:02:52]}  Nxb6 {[%clk 0:02:58]} 11. e4 {[%clk 0:02:51]}  a5 {[%clk 0:02:57]} 12. Re1 {[%clk 0:02:51]}  Nfd7 {[%clk 0:02:56]} 13. Bf4 {[%clk 0:02:49]}  a4 {[%clk 0:02:55]} 14. Rc1 {[%clk 0:02:46]}  Nc4 {[%clk 0:02:27]} 15. Qc2 {[%clk 0:02:37]}  Nce5 {[%clk 0:02:21]} 16. Nxe5 {[%clk 0:02:30]}  Nxe5 {[%clk 0:02:22]} 17. Bg5 {[%clk 0:02:20]}  Ba6 {[%clk 0:02:18]} 18. Bf1 {[%clk 0:02:18]}  Nf3+ {[%clk 0:02:16]} 19. Kg2 {[%clk 0:02:17]}  Nxe1+ {[%clk 0:01:49]} 20. Rxe1 {[%clk 0:02:18]}  Bxf1+ {[%clk 0:01:49]} 21. Kxf1 {[%clk 0:02:17]}  h6 {[%clk 0:01:48]} 22. Be3 {[%clk 0:02:11]}  Qb6 {[%clk 0:01:44]} 23. Nxa4 {[%clk 0:02:10]}  Qb5+ {[%clk 0:01:44]} 0-1


[Site "https://www.chess.com"]

[Event "Titled Tuesday Blitz May 25 2021"]
[White "Lamaze, Simon"]
[Black "Villegas, Pierre"]
[WhiteFideId "36069264"]
[BlackFideId "654183"]
[WhiteElo "1938"]
[BlackElo "2411"]
[Result "1-0"]
[Round "08"]
[TimeControl "180+1"]
[Date "2021.05.25"]
[WhiteClock "0:00:16"]
[BlackClock "0:00:02"]

1. d4 {[%clk 0:03:00]}  d5 {[%clk 0:02:58]} 2. c4 {[%clk 0:02:59]}  e6 {[%clk 0:02:58]} 3. Nf3 {[%clk 0:02:58]}  Nf6 {[%clk 0:02:57]} 4. g3 {[%clk 0:02:53]}  Be7 {[%clk 0:02:53]} 5. Bg2 {[%clk 0:02:51]}  O-O {[%clk 0:02:54]} 6. O-O {[%clk 0:02:51]}  dxc4 {[%clk 0:02:54]} 7. Qc2 {[%clk 0:02:51]}  a6 {[%clk 0:02:51]} 8. a4 {[%clk 0:02:49]}  Bd7 {[%clk 0:02:51]} 9. Qxc4 {[%clk 0:02:47]}  Bc6 {[%clk 0:02:52]} 10. Bf4 {[%clk 0:02:46]}  Bd6 {[%clk 0:02:50]} 11. Qc1 {[%clk 0:02:44]}  a5 {[%clk 0:02:49]} 12. Nc3 {[%clk 0:02:40]}  Na6 {[%clk 0:02:48]} 13. Bg5 {[%clk 0:02:32]}  Bxf3 {[%clk 0:02:35]} 14. Bxf3 {[%clk 0:02:14]}  c6 {[%clk 0:02:35]} 15. Rd1 {[%clk 0:02:11]}  h6 {[%clk 0:02:30]} 16. Bd2 {[%clk 0:02:07]}  Qe7 {[%clk 0:02:16]} 17. Qc2 {[%clk 0:01:58]}  e5 {[%clk 0:02:08]} 18. Be3 {[%clk 0:01:43]}  Nb4 {[%clk 0:01:57]} 19. Qb3 {[%clk 0:01:27]}  e4 {[%clk 0:01:54]} 20. Bg2 {[%clk 0:01:21]}  Nbd5 {[%clk 0:01:42]} 21. Nxd5 {[%clk 0:01:13]}  Nxd5 {[%clk 0:01:40]} 22. Bd2 {[%clk 0:01:13]}  f5 {[%clk 0:01:33]} 23. e3 {[%clk 0:01:11]}  Kh7 {[%clk 0:01:01]} 24. Rac1 {[%clk 0:01:07]}  g5 {[%clk 0:00:59]} 25. Be1 {[%clk 0:01:05]}  f4 {[%clk 0:00:53]} 26. exf4 {[%clk 0:00:55]}  gxf4 {[%clk 0:00:52]} 27. Bd2 {[%clk 0:00:54]}  e3 {[%clk 0:00:37]} 28. fxe3 {[%clk 0:00:48]}  f3 {[%clk 0:00:30]} 29. Bh3 {[%clk 0:00:36]}  Qe4 {[%clk 0:00:20]} 30. Qc2 {[%clk 0:00:30]}  Rae8 {[%clk 0:00:19]} 31. Kf2 {[%clk 0:00:26]}  Nb4 {[%clk 0:00:05]} 32. Bxb4 {[%clk 0:00:20]}  axb4 {[%clk 0:00:05]} 33. Qxe4+ {[%clk 0:00:21]}  Rxe4 {[%clk 0:00:05]} 34. Rd3 {[%clk 0:00:22]}  h5 {[%clk 0:00:03]} 35. b3 {[%clk 0:00:22]}  h4 {[%clk 0:00:03]} 36. Rg1 {[%clk 0:00:18]}  hxg3+ {[%clk 0:00:03]} 37. hxg3 {[%clk 0:00:19]}  Kg7 {[%clk 0:00:04]} 38. Rh1 {[%clk 0:00:17]}  Re7 {[%clk 0:00:03]} 39. Bg4 {[%clk 0:00:17]}  Kg6 {[%clk 0:00:03]} 40. Bh5+ {[%clk 0:00:17]}  Kg5 {[%clk 0:00:03]} 41. Bxf3 {[%clk 0:00:17]}  Ref7 {[%clk 0:00:02]} 42. e4 {[%clk 0:00:17]}  c5 {[%clk 0:00:02]} 43. e5 {[%clk 0:00:16]}  cxd4 {[%clk 0:00:02]} 44. Rh5+ {[%clk 0:00:16]}  Kg6 {[%clk 0:00:01]} 45. Kg2 {[%clk 0:00:17]}  Rxf3 {[%clk 0:00:01]} 46. Rxf3 {[%clk 0:00:15]}  Rxf3 {[%clk 0:00:02]} 47. Kxf3 {[%clk 0:00:16]}  Kxh5 {[%clk 0:00:02]} 48. exd6 {[%clk 0:00:16]} 1-0


[Site "https://www.chess.com"]